[Event "AUT-ch 2018"]
[Site "Vienna"]
[Date "2018.07.29"]
[Round "9"]
[White "Blohberger, Felix"]
[Black "Neumeier, Klaus"]
[Result "1-0"]
[ECO "A33"]
[WhiteElo "2420"]
[BlackElo "2284"]
[Annotator "NA RC"]
[PlyCount "115"]
[EventDate "2018.07.22"]
[EventType "swiss"]
[EventCountry "AUT"]
[SourceTitle "playchess.com"]
[Source "ChessBase"]
[SourceQuality "1"]
[TimeControl "40/5400+30:1800+30"]

1. c4 {[%emt 0:00:00]} c5 {[%emt 0:00:38]} 2. Nf3 {[%emt 0:01:20]} Nc6 {[%emt 0:00:45]} 3. d4 {[%emt 0:00:16]} cxd4 {[%emt 0:00:29]} 4. Nxd4 {[%emt 0:00:06]} e6 {[%emt 0:01:27]} 5. Nc3 {[%emt 0:00:13]} Nf6 {[%emt 0:01:21]} 6. Bf4 {[%emt 0:00:13]} d5 {[%emt 0:01:38]} 7. cxd5 {[%emt 0:00:22]} Nxd5 {[%emt 0:02:00]} 8. Nxc6 {[%emt 0:01:14]} bxc6 {[%emt 0:00:23]} 9. Bd2 {[%emt 0:00:06]} Ba6 {[%emt 0:08:55]} 10. Nxd5 {[%emt 0:06:32]} Qxd5 {[%emt 0:04:56]} 11. Qc2 {[%emt 0:01:15]} Qd7 {[%emt 0:09:16]} 12. Bc3 {[%emt 0:10:59]} Rd8 {[%emt 0:03:11]} 13. g3 {[%emt 0:06:04]} Qd5 {[%emt 0:30:02]} 14. e4 {[%emt 0:01:55]} Bd3 {[%emt 0:00:04]} 15. Bxd3 {[%emt 0:27:37]} Qxd3 {[%emt 0:00:07]} 16. Qxd3 {[%emt 0:00:03]} Rxd3 {[%emt 0:00:06]} 17. Ke2 {[%emt 0:00:07]} Rd7 {[%emt 0:00:06]} 18. Rac1 {[%emt 0:04:39]} c5 {[%emt 0:02:24]} 19. Rc2 {[%emt 0:02:11]} f6 {[%emt 0:01:17]} 20. Bd2 {[%emt 0:00:45]} Rb7 {[%emt 0:06:52]} 21. b3 {[%emt 0:03:18]} Bd6 {[%emt 0:02:20]} 22. b4 {[%emt 0:10:46]} Rc7 {[%emt 0:06:20]} 23. Rhc1 {[%emt 0:01:11]} c4 {[%emt 0:00:48]} 24. Rxc4 {[%emt 0:00:15]} Rxc4 {[%emt 0:00:06]} 25. Rxc4 {[%emt 0:00:04]} Kd7 {[%emt 0:00:03]} 26. b5 {[%emt 0:01:55]} Rb8 {[%emt 0:00:48]} 27. a4 {[%emt 0:01:41]} a6 {[%emt 0:00:19]} 28. bxa6 {[%emt 0:00:47]} Ra8 {[%emt 0:00:05]} 29. Kd3 {[%emt 0:05:41]} Rxa6 {[%emt 0:00:08]} 30. h3 {[%emt 0:00:45]} Rb6 {[%emt 0:01:38]} 31. Kc2 {[%emt 0:00:17]} Be5 {[%emt 0:01:47]} 32. f4 {[%emt 0:00:38]} Bd6 {[%emt 0:00:36]} 33. g4 {[%emt 0:02:02]} g6 {[%emt 0:00:49]} 34. f5 {[%emt 0:00:41]} exf5 {[%emt 0:01:12]} 35. exf5 {[%emt 0:00:15]} Be5 {[%emt 0:00:23]} 36. Bb4 {[%emt 0:03:24]} Ra6 {[%emt 0:05:03]} 37. Kb3 {[%emt 0:00:26]} Ra8 {[%emt 0:00:10]} 38. a5 {[%emt 0:01:26]} gxf5 {[%emt 0:01:10]} 39. gxf5 {[%emt 0:00:06]} Rg8 {[%emt 0:00:05]} 40. Ka4 {[%emt 0:02:10]} Rg5 {[%emt 0:34:08]} 41. a6 {[%emt 0:35:33]} Bb8 {[%emt 0:00:18]} 42. Rc5 {[%emt 0:00:00]} Rh5 {[%emt 0:00:00]} 43. Rb5 {[%emt 0:00:00]} Kc8 {[%emt 0:00:00]} 44. Rc5+ {[%emt 0:00:00]} Kd7 {[%emt 0:00:00]} 45. Kb5 {[%emt 0:00:00]} Rxh3 {[%emt 0:00:00]} 46. Rd5+ {[%emt 0:00:00]} Ke8 {[%emt 0:00:00]} 47. Rd6 {[%emt 0:00:00]} Ba7 {[%emt 0:00:00]} 48. Rxf6 {[%emt 0:00:00]} Bd4 {[%emt 0:00:00]} 49. Rf8+ {[%emt 0:00:00]} Kd7 {[%emt 0:00:00]} 50. a7 {[%emt 0:00:00]} Bxa7 {[%emt 0:00:00]} 51. Rf7+ {[%emt 0:00:00]} Ke8 {[%emt 0:00:00]} 52. Re7+ {[%emt 0:00:53]} Kd8 {[%emt 0:00:00]} 53. Rxa7 {[%emt 0:00:09]} Rf3 {[%emt 0:00:00]} 54. f6 {[%emt 0:00:36]} Rf5+ {[%emt 0:00:00]} 55. Ka4 {[%emt 0:00:52]} Ke8 {[%emt 0:00:00]} 56. Re7+ {[%emt 0:00:10]} Kd8 {[%emt 0:00:00]} 57. f7 {[%emt 0:00:39]} Rf4 {[%emt 0:00:00]} 58. Re8+ {[%emt 0:00:06]} 1-0

[Event "AUT-ch 2018"]
[Site "Vienna"]
[Date "2018.07.29"]
[Round "9"]
[White "Morgunov, Marc"]
[Black "Froewis, Georg"]
[Result "1-0"]
[ECO "C07"]
[WhiteElo "2362"]
[BlackElo "2427"]
[Annotator "NA"]
[PlyCount "79"]
[EventDate "2018.07.22"]
[EventType "swiss"]
[EventCountry "AUT"]
[SourceTitle "playchess.com"]
[Source "ChessBase"]
[SourceQuality "1"]
[TimeControl "40/5400+30:1800+30"]

1. e4 {[%emt 0:00:00]} e6 {[%emt 0:00:02]} 2. d4 {[%emt 0:00:50]} d5 {[%emt 0:00:02]} 3. Nd2 {[%emt 0:00:07]} c5 {[%emt 0:00:07]} 4. exd5 {[%emt 0:00:52]} Qxd5 {[%emt 0:00:06]} 5. Ngf3 {[%emt 0:01:37]} cxd4 {[%emt 0:00:03]} 6. Bc4 {[%emt 0:00:13]} Qd7 {[%emt 0:00:04]} 7. O-O {[%emt 0:02:14]} Nc6 {[%emt 0:01:07]} 8. Nb3 {[%emt 0:00:32]} a6 {[%emt 0:00:07]} 9. Nbxd4 {[%emt 0:02:02]} Nxd4 {[%emt 0:00:06]} 10. Nxd4 {[%emt 0:00:06]} Qc7 {[%emt 0:00:03]} 11. Bb3 {[%emt 0:01:46]} Bd6 {[%emt 0:00:06]} 12. h3 {[%emt 0:01:33]} Ne7 {[%emt 0:01:48]} 13. c3 {[%emt 0:01:53]} Bd7 {[%emt 0:06:04]} 14. Re1 {[%emt 0:04:07]} O-O {[%emt 0:03:16]} 15. Be3 {[%emt 0:03:15]} Rad8 {[%emt 0:07:26]} 16. Qf3 {[%emt 0:04:18]} e5 {[%emt 0:01:31]} 17. Bg5 {[%emt 0:01:09]} Rde8 {[%emt 0:11:03]} 18. Nc2 {[%emt 0:03:00]} Bc6 {[%emt 0:02:53]} 19. Qh5 {[%emt 0:03:38]} h6 {[%emt 0:17:16]} 20. Bxe7 {[%emt 0:05:42]} Qxe7 {[%emt 0:00:04]} 21. Nd4 {[%emt 0:00:23]} Bd7 {[%emt 0:09:11]} 22. Nf5 {[%emt 0:02:37]} Bxf5 {[%emt 0:00:06]} 23. Qxf5 {[%emt 0:00:05]} Kh8 {[%emt 0:00:13]} 24. Rad1 {[%emt 0:02:00]} g6 {[%emt 0:01:21]} 25. Qe4 {[%emt 0:01:59]} f5 {[%emt 0:02:48]} 26. Qe3 {[%emt 0:00:11]} Kg7 {[%emt 0:00:38]} 27. Rd5 {[%emt 0:01:18]} Rd8 {[%emt 0:00:06]} 28. Qb6 {[%emt 0:02:56]} Qc7 {[%emt 0:05:22]} 29. Qe3 {[%emt 0:02:20]} Qe7 {[%emt 0:00:30]} 30. Red1 {[%emt 0:00:23]} Bc7 {[%emt 0:01:51]} 31. Qd3 {[%emt 0:05:22]} Rxd5 {[%emt 0:03:22]} 32. Qxd5 {[%emt 0:00:29]} e4 {[%emt 0:03:52]} 33. Qd4+ {[%emt 0:04:46]} Be5 {[%emt 0:00:17]} 34. Qd7 {[%emt 0:00:07]} Kf6 {[%emt 0:00:05]} 35. g3 {[%emt 0:01:46]} Re8 {[%emt 0:03:53]} 36. Qa4 {[%emt 0:01:32]} Rd8 {[%emt 0:04:50]} 37. Rxd8 {[%emt 0:00:28]} Qxd8 {[%emt 0:00:02]} 38. Qc4 {[%emt 0:00:08]} Qe7 {[%emt 0:00:49]} 39. f4 {[%emt 0:06:25]} exf3 {[%emt 0:07:25]} 40. Qh4+ {[%emt 0:00:48]} 1-0

[Event "AUT-ch 2018"]
[Site "Vienna"]
[Date "2018.07.29"]
[Round "9"]
[White "Sandhoefner, Florian"]
[Black "Schroll, Gerhard"]
[Result "1/2-1/2"]
[ECO "D35"]
[WhiteElo "2327"]
[BlackElo "2295"]
[Annotator "NA"]
[PlyCount "60"]
[EventDate "2018.07.22"]
[EventType "swiss"]
[EventCountry "AUT"]
[SourceTitle "playchess.com"]
[Source "ChessBase"]
[SourceQuality "1"]
[TimeControl "40/5400+30:1800+30"]

1. d4 {[%emt 0:00:00]} d5 {[%emt 0:00:26]} 2. c4 {[%emt 0:00:00]} e6 {[%emt 0:00:10]} 3. Nc3 {[%emt 0:00:00]} Nf6 {[%emt 0:00:13]} 4. cxd5 {[%emt 0:00:00]} exd5 {[%emt 0:00:08]} 5. Bg5 {[%emt 0:00:00]} Be7 {[%emt 0:00:20]} 6. e3 {[%emt 0:00:05]} c6 {[%emt 0:00:42]} 7. Qc2 {[%emt 0:00:49]} Nbd7 {[%emt 0:00:06]} 8. Nf3 {[%emt 0:00:26]} O-O {[%emt 0:00:12]} 9. Bd3 {[%emt 0:00:11]} Re8 {[%emt 0:00:20]} 10. O-O {[%emt 0:00:12]} Nf8 {[%emt 0:00:17]} 11. Rab1 {[%emt 0:00:13]} a5 {[%emt 0:02:35]} 12. a3 {[%emt 0:00:26]} Be6 {[%emt 0:04:46]} 13. b4 {[%emt 0:02:01]} axb4 {[%emt 0:00:12]} 14. axb4 {[%emt 0:00:02]} N6d7 {[%emt 0:02:53]} 15. Bxe7 {[%emt 0:02:09]} Qxe7 {[%emt 0:01:15]} 16. b5 {[%emt 0:01:03]} c5 {[%emt 0:01:56]} 17. dxc5 {[%emt 0:01:17]} Qxc5 {[%emt 0:02:23]} 18. Rfc1 {[%emt 0:05:14]} Nb6 {[%emt 0:08:57]} 19. Nd4 {[%emt 0:05:41]} g6 {[%emt 0:11:18]} 20. Nce2 {[%emt 0:11:39]} Qxc2 {[%emt 0:02:36]} 21. Rxc2 {[%emt 0:00:55]} Rec8 {[%emt 0:00:51]} 22. Rbc1 {[%emt 0:03:57]} Rxc2 {[%emt 0:02:58]} 23. Rxc2 {[%emt 0:01:26]} Rc8 {[%emt 0:01:10]} 24. Rxc8 {[%emt 0:01:23]} Bxc8 {[%emt 0:01:14]} 25. Kf1 {[%emt 0:02:23]} Ne6 {[%emt 0:01:55]} 26. Ke1 {[%emt 0:03:05]} Nxd4 {[%emt 0:03:25]} 27. Nxd4 {[%emt 0:01:15]} Kf8 {[%emt 0:03:39]} 28. Kd2 {[%emt 0:00:34]} Ke7 {[%emt 0:01:30]} 29. Kc3 {[%emt 0:00:20]} Kd6 {[%emt 0:00:08]} 30. Kb4 {[%emt 0:00:24]} Nd7 {[%emt 0:01:24]} 1/2-1/2

[Event "AUT-ch 2018"]
[Site "Vienna"]
[Date "2018.07.29"]
[Round "9"]
[White "Mostbauer, Florian"]
[Black "Schreiner, Peter"]
[Result "0-1"]
[ECO "A08"]
[WhiteElo "2319"]
[BlackElo "2467"]
[Annotator "RC"]
[PlyCount "76"]
[EventDate "2018.07.22"]
[EventType "swiss"]
[EventCountry "AUT"]
[SourceTitle "playchess.com"]
[Source "ChessBase"]
[SourceQuality "1"]
[TimeControl "40/5400+30:1800+30"]

1. g3 {[%emt 0:00:00]} d5 {[%emt 0:00:32]} 2. Bg2 {[%emt 0:00:00]} c5 {[%emt 0:04:55]} 3. Nf3 {[%emt 0:01:50]} Nf6 {[%emt 0:00:10]} 4. c3 {[%emt 0:01:56]} Nc6 {[%emt 0:02:32]} 5. d4 {[%emt 0:00:24]} e6 {[%emt 0:02:14]} 6. O-O {[%emt 0:01:00]} Be7 {[%emt 0:00:43]} 7. Ne5 {[%emt 0:06:13]} O-O {[%emt 0:07:04]} 8. Nxc6 {[%emt 0:13:01]} bxc6 {[%emt 0:00:03]} 9. Qa4 {[%emt 0:02:23]} Qb6 {[%emt 0:03:51]} 10. dxc5 {[%emt 0:03:59]} Bxc5 {[%emt 0:03:05]} 11. b4 {[%emt 0:03:57]} Be7 {[%emt 0:01:35]} 12. Be3 {[%emt 0:01:38]} Qa6 {[%emt 0:07:47]} 13. Qxa6 {[%emt 0:06:38]} Bxa6 {[%emt 0:00:04]} 14. Re1 {[%emt 0:00:15]} c5 {[%emt 0:15:12]} 15. Bxc5 {[%emt 0:14:19]} Bxc5 {[%emt 0:01:07]} 16. bxc5 {[%emt 0:00:07]} Rac8 {[%emt 0:02:45]} 17. Nd2 {[%emt 0:05:31]} Rxc5 {[%emt 0:00:07]} 18. e4 {[%emt 0:00:24]} Rxc3 {[%emt 0:05:31]} 19. exd5 {[%emt 0:00:08]} Nxd5 {[%emt 0:01:00]} 20. Bxd5 {[%emt 0:00:19]} exd5 {[%emt 0:00:07]} 21. Re7 {[%emt 0:00:09]} Ra8 {[%emt 0:05:48]} 22. Rd7 {[%emt 0:02:22]} Rd3 {[%emt 0:01:16]} 23. Re1 {[%emt 0:05:11]} Bb5 {[%emt 0:02:39]} 24. Rb7 {[%emt 0:00:15]} a6 {[%emt 0:07:13]} 25. Nb3 {[%emt 0:01:59]} h5 {[%emt 0:07:39]} 26. Ree7 {[%emt 0:01:59]} Rd1+ {[%emt 0:01:55]} 27. Kg2 {[%emt 0:00:07]} d4 {[%emt 0:00:24]} 28. Rbc7 {[%emt 0:04:23]} Rf8 {[%emt 0:03:17]} 29. Re4 {[%emt 0:03:43]} Rd8 {[%emt 0:02:23]} 30. Rf4 {[%emt 0:00:07]} f6 {[%emt 0:06:23]} 31. Kf3 {[%emt 0:05:26]} Rd6 {[%emt 0:02:43]} 32. h4 {[%emt 0:01:39]} Kh7 {[%emt 0:00:51]} 33. g4 {[%emt 0:01:45]} d3 {[%emt 0:00:41]} 34. Rd4 {[%emt 0:02:11]} Rxd4 {[%emt 0:00:42]} 35. Nxd4 {[%emt 0:00:06]} d2 {[%emt 0:01:11]} 36. Rc2 {[%emt 0:00:14]} Ba4 {[%emt 0:00:59]} 37. Rb2 {[%emt 0:01:04]} hxg4+ {[%emt 0:00:50]} 38. Kf4 {[%emt 0:00:06]} g3 {[%emt 0:00:26]} 0-1

[Event "AUT-ch 2018"]
[Site "Vienna"]
[Date "2018.07.29"]
[Round "9"]
[White "Vitouch, Anatol"]
[Black "Hupfer, Robert"]
[Result "1-0"]
[ECO "D00"]
[WhiteElo "2317"]
[BlackElo "2122"]
[Annotator "NA"]
[PlyCount "97"]
[EventDate "2018.07.22"]
[EventType "swiss"]
[EventCountry "AUT"]
[SourceTitle "playchess.com"]
[Source "ChessBase"]
[SourceQuality "1"]
[TimeControl "40/5400+30:1800+30"]

1. d4 {[%emt 0:00:00]} d5 {[%emt 0:00:16]} 2. Bg5 {[%emt 0:00:00]} Nf6 {[%emt 0:00:11]} 3. Bxf6 {[%emt 0:00:00]} exf6 {[%emt 0:00:07]} 4. e3 {[%emt 0:00:00]} Bd6 {[%emt 0:00:24]} 5. g3 {[%emt 0:00:09]} O-O {[%emt 0:00:27]} 6. Bg2 {[%emt 0:00:05]} c6 {[%emt 0:00:08]} 7. Ne2 {[%emt 0:00:09]} Be6 {[%emt 0:01:35]} 8. O-O {[%emt 0:00:43]} Qc8 {[%emt 0:04:35]} 9. b3 {[%emt 0:00:32]} Bh3 {[%emt 0:05:20]} 10. c4 {[%emt 0:00:23]} Bxg2 {[%emt 0:00:36]} 11. Kxg2 {[%emt 0:00:05]} Qe6 {[%emt 0:02:19]} 12. Qd3 {[%emt 0:00:55]} Nd7 {[%emt 0:06:35]} 13. Nbc3 {[%emt 0:00:32]} dxc4 {[%emt 0:06:36]} 14. bxc4 {[%emt 0:00:54]} b6 {[%emt 0:01:11]} 15. a4 {[%emt 0:08:40]} Rfd8 {[%emt 0:10:55]} 16. Rfc1 {[%emt 0:07:34]} Bc7 {[%emt 0:06:14]} 17. Nb1 {[%emt 0:07:44]} Nc5 {[%emt 0:06:28]} 18. Qc2 {[%emt 0:00:39]} Ne4 {[%emt 0:05:20]} 19. Nd2 Ng5 {[%emt 0:05:37]} 20. Ng1 {[%emt 0:00:49]} Qd7 {[%emt 0:10:20]} 21. h4 {[%emt 0:01:38]} Ne6 {[%emt 0:00:14]} 22. Ngf3 {[%emt 0:02:41]} Re8 {[%emt 0:05:21]} 23. Ne4 {[%emt 0:12:57]} Qe7 {[%emt 0:03:16]} 24. Nc3 Qd7 {[%emt 0:03:12]} 25. Rd1 {[%emt 0:09:12]} Nd8 {[%emt 0:01:01]} 26. h5 {[%emt 0:12:27]} h6 {[%emt 0:00:43]} 27. Nh4 {[%emt 0:00:40]} Qe6 {[%emt 0:01:20]} 28. Qd3 {[%emt 0:06:07]} Nb7 {[%emt 0:02:18]} 29. Nf5 {[%emt 0:03:23]} Nd6 {[%emt 0:02:03]} 30. Nxd6 {[%emt 0:00:12]} Bxd6 {[%emt 0:00:20]} 31. Rdb1 {[%emt 0:03:41]} Bc7 {[%emt 0:02:20]} 32. a5 {[%emt 0:01:27]} Qg4 {[%emt 0:01:45]} 33. Qe2 {[%emt 0:01:49]} Qg5 {[%emt 0:00:48]} 34. Qf3 {[%emt 0:04:21]} Rac8 {[%emt 0:04:01]} 35. Ne4 {[%emt 0:01:50]} Rxe4 {[%emt 0:01:55]} 36. Qxe4 {[%emt 0:00:05]} c5 {[%emt 0:01:51]} 37. axb6 {[%emt 0:01:00]} Bxb6 {[%emt 0:00:10]} 38. Rb5 {[%emt 0:04:37]} Qxh5 {[%emt 0:00:42]} 39. dxc5 {[%emt 0:00:24]} Bxc5 {[%emt 0:00:35]} 40. Rxa7 {[%emt 0:04:39]} Qe5 {[%emt 0:30:44]} 41. Qxe5 {[%emt 0:34:29]} fxe5 {[%emt 0:00:00]} 42. Raa5 {[%emt 0:00:00]} Bd6 {[%emt 0:00:00]} 43. Rd5 {[%emt 0:00:00]} Bb4 {[%emt 0:00:00]} 44. Ra4 {[%emt 0:00:00]} Bc3 {[%emt 0:00:00]} 45. Rd3 {[%emt 0:00:00]} Bb2 {[%emt 0:00:00]} 46. Rb3 {[%emt 0:00:00]} Bc1 {[%emt 0:00:00]} 47. Kf3 {[%emt 0:00:00]} f5 {[%emt 0:00:00]} 48. Ke2 {[%emt 0:00:00]} Rd8 {[%emt 0:00:00]} 49. Ra2 {[%emt 0:00:00]} 1-0

[Event "AUT-ch 2018"]
[Site "Vienna"]
[Date "2018.07.29"]
[Round "9"]
[White "Gerhold, Michael"]
[Black "Exler, Veronika"]
[Result "0-1"]
[ECO "B12"]
[WhiteElo "2254"]
[BlackElo "2198"]
[Annotator "NA"]
[PlyCount "98"]
[EventDate "2018.07.22"]
[EventType "swiss"]
[EventCountry "AUT"]
[SourceTitle "playchess.com"]
[Source "ChessBase"]
[SourceQuality "1"]
[TimeControl "40/5400+30:1800+30"]

1. e4 {[%emt 0:00:00]} c6 {[%emt 0:00:03]} 2. d4 {[%emt 0:00:00]} d5 {[%emt 0:00:04]} 3. e5 {[%emt 0:00:29]} Bf5 {[%emt 0:00:06]} 4. Nf3 {[%emt 0:00:08]} e6 {[%emt 0:00:06]} 5. Be2 {[%emt 0:00:06]} Nd7 {[%emt 0:00:03]} 6. O-O {[%emt 0:00:18]} h6 {[%emt 0:00:03]} 7. Nbd2 {[%emt 0:02:07]} Ne7 {[%emt 0:00:22]} 8. Nb3 {[%emt 0:00:17]} Bh7 {[%emt 0:00:06]} 9. Bd2 {[%emt 0:03:06]} Nf5 {[%emt 0:01:13]} 10. Rc1 {[%emt 0:07:08]} Nb6 {[%emt 0:00:13]} 11. Na5 {[%emt 0:05:09]} Qd7 {[%emt 0:02:39]} 12. g4 {[%emt 0:02:10]} Ne7 {[%emt 0:00:29]} 13. Nh4 {[%emt 0:13:18]} Ng6 {[%emt 0:13:13]} 14. Ng2 {[%emt 0:00:27]} c5 {[%emt 0:07:46]} 15. c3 {[%emt 0:09:46]} Rb8 {[%emt 0:20:22]} 16. Nb3 {[%emt 0:11:44]} Na4 {[%emt 0:11:09]} 17. Nxc5 {[%emt 0:17:36]} Nxc5 {[%emt 0:00:22]} 18. dxc5 {[%emt 0:00:05]} Bxc5 {[%emt 0:00:06]} 19. Bf4 {[%emt 0:05:23]} Nxf4 {[%emt 0:07:50]} 20. Nxf4 {[%emt 0:00:27]} b5 {[%emt 0:08:15]} 21. Bd3 {[%emt 0:07:37]} O-O {[%emt 0:01:24]} 22. Bxh7+ {[%emt 0:00:08]} Kxh7 {[%emt 0:00:01]} 23. Qd3+ {[%emt 0:00:26]} Kg8 {[%emt 0:00:12]} 24. Kg2 {[%emt 0:02:32]} Qc7 {[%emt 0:01:27]} 25. Rfe1 {[%emt 0:00:16]} Be7 {[%emt 0:00:28]} 26. Nh5 {[%emt 0:00:59]} Qc4 {[%emt 0:00:46]} 27. Qxc4 {[%emt 0:01:08]} bxc4 {[%emt 0:00:08]} 28. Rc2 {[%emt 0:00:27]} Rb6 {[%emt 0:11:32]} 29. f4 {[%emt 0:00:53]} Rfb8 {[%emt 0:00:50]} 30. Ree2 {[%emt 0:00:06]} f6 {[%emt 0:05:11]} 31. Ng3 {[%emt 0:03:49]} fxe5 {[%emt 0:00:23]} 32. fxe5 {[%emt 0:00:01]} Bc5 {[%emt 0:00:46]} 33. h3 {[%emt 0:03:27]} Ra6 {[%emt 0:00:17]} 34. a3 {[%emt 0:00:08]} Rab6 {[%emt 0:00:05]} 35. Rcd2 {[%emt 0:01:32]} Rf8 {[%emt 0:02:09]} 36. Nf1 {[%emt 0:02:45]} Rb7 {[%emt 0:01:57]} 37. Ne3 {[%emt 0:00:36]} Rbf7 {[%emt 0:02:04]} 38. Nc2 {[%emt 0:00:25]} Rf4 {[%emt 0:00:50]} 39. Nd4 {[%emt 0:00:22]} Bxd4 {[%emt 0:00:34]} 40. Rxd4 {[%emt 0:01:05]} Rxd4 {[%emt 0:31:11]} 41. cxd4 {[%emt 0:30:08]} Rb8 {[%emt 0:00:00]} 42. Rd2 {[%emt 0:00:00]} Rb3 {[%emt 0:00:00]} 43. h4 {[%emt 0:00:00]} h5 {[%emt 0:00:00]} 44. gxh5 {[%emt 0:00:00]} Kh7 {[%emt 0:00:00]} 45. Rf2 {[%emt 0:00:00]} a6 {[%emt 0:00:00]} 46. Rf8 {[%emt 0:00:00]} Rxb2+ {[%emt 0:00:00]} 47. Kg1 {[%emt 0:00:00]} Rd2 {[%emt 0:00:00]} 48. Re8 {[%emt 0:00:00]} Rxd4 {[%emt 0:00:00]} 49. Rxe6 {[%emt 0:00:00]} c3 {[%emt 0:00:00]} 0-1

[Event "AUT-ch 2018"]
[Site "Vienna"]
[Date "2018.07.29"]
[Round "9"]
[White "Ly, Dominik"]
[Black "Morgunov, Daniel"]
[Result "0-1"]
[ECO "B20"]
[WhiteElo "2217"]
[BlackElo "2346"]
[Annotator "NA"]
[PlyCount "78"]
[EventDate "2018.07.22"]
[EventType "swiss"]
[EventCountry "AUT"]
[SourceTitle "playchess.com"]
[Source "ChessBase"]
[SourceQuality "1"]
[TimeControl "40/5400+30:1800+30"]

1. e4 {[%emt 0:00:00]} c5 {[%emt 0:00:04]} 2. b3 {[%emt 0:00:00]} e6 {[%emt 0:02:04]} 3. Bb2 {[%emt 0:00:00]} d5 {[%emt 0:01:03]} 4. exd5 {[%emt 0:01:20]} exd5 {[%emt 0:01:50]} 5. d4 {[%emt 0:00:11]} Nf6 {[%emt 0:02:51]} 6. Nf3 {[%emt 0:03:46]} Be7 {[%emt 0:08:02]} 7. Bb5+ {[%emt 0:04:12]} Nc6 {[%emt 0:02:08]} 8. O-O {[%emt 0:03:32]} O-O {[%emt 0:00:20]} 9. h3 {[%emt 0:04:32]} Ne4 {[%emt 0:06:16]} 10. Nbd2 {[%emt 0:10:25]} Bf6 {[%emt 0:01:05]} 11. Nxe4 {[%emt 0:05:59]} dxe4 {[%emt 0:00:08]} 12. Bxc6 {[%emt 0:00:09]} bxc6 {[%emt 0:00:53]} 13. Ne5 {[%emt 0:00:29]} Qc7 {[%emt 0:14:22]} 14. Ng4 {[%emt 0:13:44]} Bxd4 {[%emt 0:15:40]} 15. Bxd4 {[%emt 0:00:40]} cxd4 {[%emt 0:00:21]} 16. Qxd4 {[%emt 0:00:10]} Bxg4 {[%emt 0:00:55]} 17. hxg4 {[%emt 0:00:10]} Qf4 {[%emt 0:00:17]} 18. Rfe1 {[%emt 0:01:15]} Rfe8 {[%emt 0:02:12]} 19. Qd7 {[%emt 0:32:09]} Re6 {[%emt 0:14:18]} 20. Rad1 {[%emt 0:05:46]} Rf8 {[%emt 0:06:51]} 21. Qxa7 {[%emt 0:02:38]} Rh6 {[%emt 0:03:06]} 22. Qe3 {[%emt 0:00:52]} Qxg4 {[%emt 0:03:05]} 23. Qxe4 {[%emt 0:00:38]} Qh5 {[%emt 0:00:04]} 24. g3 {[%emt 0:00:30]} f5 {[%emt 0:01:18]} 25. Qg2 {[%emt 0:02:47]} f4 {[%emt 0:03:16]} 26. g4 {[%emt 0:00:07]} Qc5 {[%emt 0:02:31]} 27. c4 {[%emt 0:01:39]} Rg6 {[%emt 0:00:54]} 28. Kf1 {[%emt 0:01:25]} h5 {[%emt 0:03:24]} 29. f3 {[%emt 0:00:11]} hxg4 {[%emt 0:00:09]} 30. fxg4 {[%emt 0:00:18]} f3 {[%emt 0:00:13]} 31. Qf2 {[%emt 0:00:25]} Qg5 {[%emt 0:01:32]} 32. Re4 {[%emt 0:01:57]} Rh6 {[%emt 0:00:49]} 33. Qg1 {[%emt 0:01:48]} Qh4 {[%emt 0:01:59]} 34. Red4 {[%emt 0:02:25]} Re6 {[%emt 0:01:29]} 35. R4d2 {[%emt 0:00:35]} Qh3+ {[%emt 0:01:08]} 36. Kf2 {[%emt 0:00:08]} Qh4+ {[%emt 0:00:22]} 37. Kf1 {[%emt 0:00:12]} Rfe8 {[%emt 0:00:34]} 38. Qf2 {[%emt 0:00:36]} Qh1+ {[%emt 0:00:18]} 39. Qg1 {[%emt 0:00:14]} Re1+ {[%emt 0:00:21]} 0-1

[Event "AUT-ch 2018"]
[Site "Vienna"]
[Date "2018.07.29"]
[Round "9"]
[White "Peyrer, Konstantin"]
[Black "Polterauer, Chiara"]
[Result "0-1"]
[ECO "D00"]
[WhiteElo "2209"]
[BlackElo "2169"]
[Annotator "NA"]
[PlyCount "88"]
[EventDate "2018.07.22"]
[EventType "swiss"]
[EventCountry "AUT"]
[SourceTitle "playchess.com"]
[Source "ChessBase"]
[SourceQuality "1"]
[TimeControl "40/5400+30:1800+30"]

1. d4 {[%emt 0:00:00]} d5 {[%emt 0:00:07]} 2. Bf4 {[%emt 0:00:00]} Nf6 {[%emt 0:00:15]} 3. e3 {[%emt 0:00:00]} c5 {[%emt 0:00:15]} 4. c3 {[%emt 0:00:00]} Nc6 {[%emt 0:00:18]} 5. Nd2 {[%emt 0:00:00]} Bf5 {[%emt 0:00:37]} 6. Ngf3 {[%emt 0:00:00]} e6 {[%emt 0:00:30]} 7. Qb3 {[%emt 0:00:00]} Qc8 {[%emt 0:01:41]} 8. c4 {[%emt 0:00:07]} cxd4 {[%emt 0:06:31]} 9. Nxd4 {[%emt 0:00:06]} Nxd4 {[%emt 0:01:58]} 10. exd4 {[%emt 0:01:04]} a6 {[%emt 0:10:44]} 11. Be2 {[%emt 0:01:46]} Be7 {[%emt 0:01:05]} 12. O-O {[%emt 0:00:49]} O-O {[%emt 0:00:13]} 13. c5 {[%emt 0:00:28]} Qc6 {[%emt 0:03:51]} 14. Nf3 {[%emt 0:06:34]} Nd7 {[%emt 0:00:40]} 15. Ne5 {[%emt 0:00:37]} Nxe5 {[%emt 0:01:20]} 16. Bxe5 {[%emt 0:00:55]} Rfe8 {[%emt 0:13:57]} 17. a4 {[%emt 0:03:56]} f6 {[%emt 0:03:16]} 18. Bg3 {[%emt 0:00:44]} Bf8 {[%emt 0:00:14]} 19. Bd3 {[%emt 0:05:38]} Bxd3 {[%emt 0:04:05]} 20. Qxd3 {[%emt 0:00:08]} e5 {[%emt 0:00:08]} 21. dxe5 {[%emt 0:00:21]} fxe5 {[%emt 0:00:07]} 22. b4 {[%emt 0:00:04]} a5 {[%emt 0:04:02]} 23. b5 {[%emt 0:07:18]} Qxc5 {[%emt 0:00:13]} 24. Rac1 {[%emt 0:00:17]} Qd6 {[%emt 0:01:26]} 25. Rfd1 {[%emt 0:02:58]} Rad8 {[%emt 0:05:11]} 26. Qc3 {[%emt 0:01:59]} b6 {[%emt 0:00:43]} 27. Qc6 {[%emt 0:02:20]} d4 {[%emt 0:05:21]} 28. Qe4 {[%emt 0:01:48]} Qd5 {[%emt 0:00:40]} 29. Qxd5+ {[%emt 0:01:48]} Rxd5 {[%emt 0:00:06]} 30. Rc6 {[%emt 0:00:08]} Bc5 {[%emt 0:01:13]} 31. f3 {[%emt 0:01:29]} e4 {[%emt 0:13:09]} 32. fxe4 {[%emt 0:00:32]} Rxe4 {[%emt 0:00:09]} 33. Rd3 {[%emt 0:02:41]} Re3 {[%emt 0:01:43]} 34. Rxe3 {[%emt 0:00:07]} dxe3 {[%emt 0:00:04]} 35. Kf1 {[%emt 0:00:04]} Rd2 {[%emt 0:04:21]} 36. Re6 {[%emt 0:01:05]} Kf7 {[%emt 0:07:41]} 37. Re4 {[%emt 0:00:08]} Ra2 {[%emt 0:00:44]} 38. Be1 {[%emt 0:05:15]} Kg6 {[%emt 0:04:38]} 39. Bc3 {[%emt 0:01:09]} Rf2+ {[%emt 0:03:46]} 40. Ke1 {[%emt 0:00:34]} Rxg2 {[%emt 0:30:24]} 41. Bd4 {[%emt 0:30:41]} Kf5 {[%emt 0:00:00]} 42. Re5+ {[%emt 0:00:00]} Kf4 {[%emt 0:00:00]} 43. Bxc5 {[%emt 0:00:00]} Kxe5 {[%emt 0:00:00]} 44. Bxb6 {[%emt 0:00:00]} Ke4 {[%emt 0:00:00]} 0-1